bitfinex/quotes_SOLUSD_20251119
["timestamp","ask_amount","ask_price","bid_price","bid_amount"]
[1763568517760,0.68,135.23,135.2,6.33224619]
[1763568517975,0.68,135.23,135.21,6.33224619]
[1763568518172,9.78882769,135.22,135.19,6.33224619]
[1763568518477,1.8,135.21,135.18,6.33224619]
[1763568518657,2.48,135.21,135.18,62.1]
[1763568518867,0.68,135.2,135.13,62.1]
[1763568519065,9.78882769,135.19,135.16,6.33224619]
[1763568519266,9.78882769,135.19,135.17,6.33224619]
[1763568519465,0.68,135.19,135.16,6.33224619]
[1763568519662,9.78882769,135.2,135.17,6.33224619]
[1763568519876,1.8,135.21,135.16,18.12096]
[1763568520179,1.8,135.21,135.19,6.33224619]
[1763568520364,2.48,135.21,135.19,6.33224619]
[1763568520684,2.48,135.21,135.12,0.74008288]
[1763568520685,9.78882769,135.19,135.12,62.1]
[1763568520872,9.78882769,135.19,135.16,6.33224619]
[1763568521179,0.68,135.18,135.15,6.33224619]
[1763568521384,0.68,135.18,135.16,6.33224619]
[1763568521686,0.68,135.18,135.15,6.33224619]
[1763568524090,11.58882769,135.17,135.11,6.33224619]
[1763568524297,16.38600852,135.17,135.11,6.33224619]
[1763568524601,9.78882769,135.15,135.07,22.74574419]
[1763568524772,9.78882769,135.15,135.09,6.33224619]
[1763568524969,0.68,135.14,135.12,6.33224619]
[1763568525374,0.68,135.14,135.11,6.33224619]
[1763568525570,0.68,135.14,135.12,6.33224619]
[1763568526167,0.68,135.14,135.11,6.33224619]
[1763568527571,4.79718083,135.19,135.13,6.33224619]
[1763568527768,5.47718083,135.19,135.17,6.33224619]
[1763568527978,0.68,135.19,135.17,6.33224619]
[1763568528181,0.68,135.18,135.17,6.33224619]
[1763568528394,0.68,135.18,135.12,7.40067344]
[1763568528630,0.68,135.18,135.17,6.33224619]
[1763568528803,0.68,135.18,135.15,6.33224619]
[1763568529096,0.68,135.18,135.16,6.33224619]
[1763568529904,0.68,135.18,135.15,6.33224619]
[1763568530919,9.78882769,135.19,135.17,6.33224619]
[1763568531108,4.79718083,135.22,135.18,6.33224619]
[1763568531311,7.71680902,135.28,135.21,6.33224619]
[1763568531312,1.8,135.25,135.21,6.33224619]
[1763568531536,4.79718083,135.27,135.24,6.33224619]
[1763568531695,0.72,135.29,135.26,6.33224619]
[1763568531899,6.07605222,135.29,135.23,18.12096]
[1763568532235,6.07605222,135.29,135.2,18.32096]
[1763568532409,0.72,135.28,135.25,6.33224619]
[1763568532725,9.78882769,135.27,135.2,18.12096]
[1763568532903,9.78882769,135.25,135.22,6.33224619]
[1763568533110,1.8,135.25,135.24,6.33224619]
[1763568533314,7.1544378,135.25,135.23,6.33224619]
[1763568533520,2.52,135.25,135.23,6.33224619]
[1763568533825,9.78882769,135.23,135.21,6.33224619]
[1763568534022,9.78882769,135.23,135.19,6.33224619]
[1763568534215,0.72,135.22,135.19,6.33224619]
[1763568534598,0.72,135.22,135.2,6.33224619]
[1763568534927,0.72,135.22,135.19,6.33224619]
[1763568535226,0.72,135.22,135.2,6.33224619]
[1763568536131,0.72,135.22,135.21,6.33224619]
[1763568536423,10.50882769,135.24,135.21,6.33224619]
[1763568536734,0.72,135.23,135.21,6.33224619]
[1763568537105,6.07902085,135.23,135.21,6.33224619]
[1763568537815,9.78882769,135.21,135.14,9.19938661]
[1763568538141,0.72,135.2,135.17,24.45320619]
[1763568538315,11.58882769,135.21,135.18,6.33224619]
[1763568538644,11.58882769,135.21,135.19,6.33224619]
[1763568539027,12.30882769,135.21,135.19,6.33224619]
[1763568539534,0.72,135.2,135.18,6.33224619]
[1763568540404,6.08357752,135.2,135.17,6.33224619]
[1763568540599,9.78882769,135.19,135.17,68.43224619]
[1763568540924,10.50882769,135.19,135.17,68.43224619]
[1763568541128,11.58882769,135.21,135.18,6.33224619]
[1763568541428,9.78882769,135.19,135.18,61.38]
[1763568541632,21.49053028,135.19,135.12,6.33224619]
[1763568541814,16.12107388,135.17,135.1,6.33224619]
[1763568542127,7.1694564,135.16,135.14,6.33224619]
[1763568542334,1.8,135.16,135.13,6.33224619]
[1763568542529,9.78882769,135.17,135.15,6.33224619]
[1763568542728,4.8186407,135.19,135.16,6.33224619]
[1763568542729,11.58882769,135.19,135.16,6.33224619]
[1763568543032,11.58882769,135.19,135.15,6.33224619]
[1763568543220,0.62,135.18,135.15,6.33224619]
[1763568543412,9.78882769,135.17,135.13,18.12096]
[1763568543618,11.58882769,135.19,135.14,7.02224619]
[1763568543927,11.58882769,135.19,135.16,6.33224619]
[1763568544125,1.8,135.19,135.17,6.33224619]
[1763568544630,9.78882769,135.18,135.15,6.33224619]
[1763568545010,10.40882769,135.18,135.15,6.33224619]
[1763568545206,10.40882769,135.18,135.1,6.33224619]
[1763568545207,9.78882769,135.16,135.13,6.33224619]
[1763568545411,9.78882769,135.16,135.1,18.12096]
[1763568545412,4.81096875,135.17,135.15,6.33224619]
[1763568545746,9.78882769,135.23,135.16,25.14320619]
[1763568545912,4.8206042,135.27,135.22,18.12096]
[1763568546112,5.98643056,135.31,135.26,6.33224619]
[1763568546319,5.35765101,135.3,135.25,18.12096]
[1763568546620,5.35693663,135.29,135.28,6.33224619]
[1763568546814,4.8206042,135.32,135.28,6.33224619]
[1763568547012,1.9,135.35,135.31,6.33224619]
[1763568547348,9.78882769,135.33,135.29,6.33224619]
[1763568547555,5.4406042,135.34,135.3,6.33224619]
[1763568547846,9.78882769,135.32,135.3,6.33224619]
[1763568548051,5.96980593,135.33,135.23,1.8]
[1763568548052,0.62,135.33,135.23,20.61096]
[1763568548361,9.78882769,135.26,135.21,6.33224619]
[1763568548680,9.78882769,135.24,135.22,6.33224619]
[1763568549052,1.8,135.25,135.22,6.33224619]
[1763568549347,18.74096,135.27,135.22,6.33224619]
[1763568549348,9.78882769,135.29,135.24,6.33224619]
[1763568549516,9.78882769,135.27,135.25,6.33224619]
[1763568549711,9.78882769,135.27,135.23,18.81096]
[1763568549955,10.40882769,135.29,135.23,0.69]
[1763568550129,4.81644178,135.3,135.28,6.33224619]
[1763568550315,1.8,135.32,135.29,6.33224619]
[1763568550709,1.8,135.32,135.3,6.33224619]
[1763568550934,9.78882769,135.31,135.27,0.69]
[1763568551110,10.40882769,135.31,135.24,18.12096]
[1763568551317,9.78882769,135.29,135.26,6.33224619]
[1763568551516,15.22526947,135.31,135.26,6.33224619]
[1763568551745,9.78882769,135.3,135.27,6.33224619]
[1763568552052,9.78882769,135.31,135.28,6.33224619]
[1763568552351,9.78882769,135.31,135.27,6.33224619]
[1763568552844,10.40882769,135.31,135.27,6.33224619]
[1763568553423,9.78882769,135.32,135.25,0.69]
[1763568553626,1.8,135.3,135.28,6.33224619]
[1763568554552,1.8,135.3,135.25,0.69]
[1763568554553,1.8,135.3,135.16,1.99999999]
[1763568554752,1.8,135.3,135.23,18.12096]
[1763568554753,15.76063883,135.29,135.23,18.12096]
[1763568555048,1.8,135.28,135.27,6.33224619]
[1763568555754,1.8,135.28,135.27,7.02224619]
[1763568555951,4.81798013,135.32,135.27,7.02224619]
[1763568556189,0.1,135.35,135.31,6.33224619]
[1763568556321,7.87307133,135.35,135.31,6.33224619]
[1763568556517,2.52,135.35,135.31,6.33224619]
[1763568556718,2.52,135.35,135.32,6.33224619]
[1763568556920,2.52,135.35,135.34,6.33224619]
[1763568556921,0.1,135.35,135.34,6.33224619]
[1763568557238,0.1,135.35,135.31,6.33224619]
[1763568557436,0.1,135.35,135.32,6.33224619]
[1763568558225,0.1,135.35,135.34,6.33224619]
[1763568558424,0.1,135.35,135.29,25.5123994]
[1763568558622,0.1,135.35,135.33,6.33224619]
[1763568558951,0.1,135.35,135.3,0.69]
[1763568558952,11.58882769,135.34,135.3,6.33224619]
[1763568559155,11.58882769,135.34,135.3,7.02224619]
[1763568559329,11.58882769,135.34,135.31,6.33224619]
[1763568559652,11.58882769,135.34,135.29,28.88640982]
[1763568559972,12.20882769,135.34,135.3,6.33224619]
[1763568560167,16.12107388,135.32,135.24,0.69]
[1763568560373,16.12107388,135.32,135.24,6.33224619]
[1763568560374,16.12107388,135.3,135.24,6.33224619]
[1763568560668,9.78882769,135.26,135.2,0.69]
[1763568560839,1.8,135.25,135.21,9.70870091]
[1763568561040,9.78882769,135.24,135.16,0.69]
[1763568561271,9.78882769,135.21,135.12,0.69]
[1763568561570,9.78882769,135.19,135.17,9.70870091]
[1763568561747,9.78882769,135.19,135.16,9.70870091]
[1763568562156,9.78882769,135.19,135.16,10.39870091]
[1763568562347,9.78882769,135.19,135.17,9.70870091]
[1763568562867,9.78882769,135.19,135.16,10.39870091]
[1763568563066,9.78882769,135.19,135.17,9.70870091]
[1763568563272,9.78882769,135.19,135.16,9.70870091]
[1763568563456,9.78882769,135.19,135.14,0.69]
[1763568563768,9.78882769,135.17,135.11,0.69]
[1763568563971,9.78882769,135.15,135.13,9.70870091]
[1763568564144,9.78882769,135.15,135.14,9.70870091]
[1763568564341,1.8,135.16,135.14,10.40870091]
[1763568564573,1.8,135.16,135.15,9.70870091]
[1763568564753,1.8,135.19,135.15,9.70870091]
[1763568564948,1.8,135.19,135.11,0.7]
[1763568564949,9.78882769,135.18,135.11,0.7]
[1763568565144,10.40882769,135.18,135.12,9.70870091]
[1763568565345,9.78882769,135.14,135.08,9.70870091]
[1763568565564,9.78882769,135.12,135.11,9.70870091]
[1763568565766,9.78882769,135.12,135.1,9.70870091]
[1763568565960,9.78882769,135.12,135.11,9.70870091]
[1763568566174,1.8,135.13,135.11,10.40870091]
[1763568566342,9.78882769,135.13,135.12,10.40870091]
[1763568566545,9.78882769,135.13,135.1,0.7]
[1763568566746,9.78882769,135.13,135.12,9.70870091]
[1763568567276,9.78882769,135.13,135.11,9.70870091]
[1763568567476,9.78882769,135.13,135.12,9.70870091]
[1763568567887,4.79495881,135.18,135.12,10.40870091]
[1763568568058,9.78882769,135.17,135.14,9.70870091]
[1763568568559,9.78882769,135.17,135.08,9.70870091]
[1763568568560,9.78882769,135.15,135.1,0.7]
[1763568568759,9.78882769,135.15,135.12,9.70870091]
[1763568568979,9.78882769,135.15,135.11,9.70870091]
[1763568569484,9.78882769,135.15,135.11,10.40870091]
[1763568570157,9.78882769,135.15,135.11,9.70870091]
[1763568570379,0.62,135.16,135.11,9.70870091]
[1763568570380,9.78882769,135.13,135.11,9.70870091]
[1763568570552,9.78882769,135.13,135.08,18.12096]
[1763568570756,10.40882769,135.13,135.09,9.70870091]
[1763568571083,9.78882769,135.13,135.1,9.70870091]
[1763568571467,1.8,135.17,135.12,9.70870091]
[1763568571668,1.8,135.17,135.13,9.70870091]
[1763568571869,1.8,135.17,135.12,9.70870091]
[1763568572179,2.42,135.17,135.13,9.70870091]
[1763568572481,2.42,135.17,135.12,10.40870091]
[1763568572671,9.78882769,135.15,135.12,9.70870091]
[1763568573361,1.8,135.16,135.13,9.70870091]
[1763568573558,1.8,135.16,135.12,10.40870091]
[1763568573878,9.78882769,135.15,135.11,9.70870091]
[1763568574384,9.78882769,135.15,135.09,0.7]
[1763568574385,9.78882769,135.13,135.05,22.68520354]
[1763568574563,9.78882769,135.11,135.06,9.70870091]
[1763568574881,9.78882769,135.11,135.06,10.40870091]
[1763568575060,9.78882769,135.11,135.07,9.70870091]
[1763568575682,10.40882769,135.11,135.06,9.70870091]
[1763568575887,9.78882769,135.09,135.05,0.2]
[1763568576183,19.4975286,135.06,135.05,0.2]
[1763568576490,19.4975286,135.06,135.05,0.1]
[1763568576696,24.794939,135.06,135.05,0.1]
[1763568576860,9.78882769,135.02,135.01,0.1]
[1763568577060,11.58882769,135.02,135.01,0.1]
[1763568577259,12.00882769,135.02,135.01,0.1]
[1763568577483,21.2975286,135.02,135.01,0.1]
[1763568577691,21.7175286,135.02,135.01,0.1]
[1763568578004,37.6184886,135.01,135.0,0.2]
[1763568578300,37.9384886,135.01,135.0,0.2]
[1763568578597,9.78882769,135.01,135.0,0.2]
[1763568578798,9.78882769,135.01,135.0,10.60870091]
[1763568579099,9.78882769,135.02,135.0,10.60870091]
[1763568579267,9.78882769,135.02,135.0,0.2]
[1763568580076,9.78882769,135.02,135.0,9.90870091]
[1763568580272,9.78882769,135.02,135.0,0.2]
[1763568581700,1.8,135.03,135.01,10.41870091]
[1763568581999,9.78882769,135.02,135.0,0.91]
[1763568582200,9.78882769,135.02,135.0,10.61870091]
[1763568582504,9.78882769,135.02,135.01,10.41870091]
[1763568583365,9.78882769,135.02,135.01,9.70870091]
[1763568583565,9.78882769,135.02,135.0,0.2]
[1763568583982,9.78882769,135.02,135.0,9.90870091]
[1763568584703,9.78882769,135.02,135.0,10.61870091]
[1763568585099,9.78882769,135.02,135.0,9.90870091]
[1763568585495,9.78882769,135.02,135.0,0.2]
[1763568586100,9.78882769,135.02,134.87,0.71]
[1763568586101,27.82966091,134.99,134.87,0.71]
[1763568586275,9.78882769,134.93,134.87,0.71]
[1763568586474,9.70870091,134.97,134.85,0.71]
[1763568586475,9.70870091,134.91,134.85,0.71]
[1763568586696,9.78882769,134.91,134.87,0.2]
[1763568587196,9.78882769,134.91,134.88,0.71]
[1763568587410,9.78882769,134.91,134.9,9.70870091]
[1763568587596,1.8,134.92,134.9,9.70870091]
[1763568587902,1.8,134.93,134.91,10.41870091]
[1763568588286,1.8,134.93,134.89,0.71]
[1763568588493,1.8,134.93,134.89,10.41870091]
[1763568589398,1.8,134.93,134.91,9.70870091]
[1763568589692,9.78882769,134.92,134.9,10.41870091]
[1763568589895,9.78882769,134.92,134.88,0.72]
[1763568590070,9.78882769,134.92,134.88,10.42870091]
[1763568590473,9.78882769,134.92,134.88,0.72]
[1763568590974,9.78882769,134.92,134.88,10.42870091]
[1763568591191,9.78882769,134.92,134.88,0.72]
[1763568591504,11.58882769,134.95,134.91,9.70870091]
[1763568591799,11.58882769,134.95,134.93,9.70870091]
[1763568591997,9.78882769,134.97,134.94,9.70870091]
[1763568592180,9.78882769,134.97,134.89,0.72]
[1763568592181,1.8,134.98,134.96,9.70870091]
[1763568592494,1.8,134.98,134.9,18.12096]
[1763568592495,1.8,134.98,134.95,9.70870091]
[1763568593098,11.58882769,134.98,134.96,0.72]
[1763568593269,1.8,134.98,134.96,0.72]
[1763568594408,1.8,134.98,134.95,9.70870091]
[1763568594575,1.8,134.98,134.95,10.42870091]
[1763568594777,1.8,134.98,134.96,0.72]
[1763568595900,9.78882769,134.97,134.96,0.72]
[1763568596476,9.78882769,134.97,134.96,10.42870091]
[1763568596679,9.78882769,134.97,134.96,0.72]
[1763568596882,9.78882769,134.97,134.94,10.42870091]
[1763568597204,9.78882769,134.97,134.94,9.70870091]
[1763568597414,9.78882769,134.97,134.87,0.2]
[1763568597585,9.78882769,134.97,134.92,9.70870091]
[1763568597991,9.78882769,134.97,134.93,0.72]
[1763568598396,9.78882769,134.97,134.9,18.12096]
[1763568598397,19.6175286,134.97,134.91,9.70870091]
[1763568598678,19.6175286,134.97,134.9,0.72]
[1763568598679,9.78882769,134.95,134.9,0.72]
[1763568598907,9.78882769,134.95,134.89,9.70870091]
[1763568598908,9.78882769,134.93,134.89,9.70870091]
[1763568599079,9.78882769,134.93,134.89,10.42870091]
[1763568599293,9.78882769,134.93,134.9,0.72]
[1763568599599,27.90978769,134.95,134.92,9.70870091]
[1763568599783,9.78882769,134.95,134.9,0.72]
[1763568599978,9.78882769,134.95,134.92,9.70870091]
[1763568600404,1.8,134.96,134.88,18.12096]
[1763568600405,1.8,134.96,134.93,10.42870091]
[1763568600590,9.78882769,134.99,134.93,72.52870091]
[1763568600790,5.98643056,135.05,134.94,0.72]
[1763568600993,9.70870091,135.0,134.94,72.52870091]
[1763568601179,21.2975286,134.99,134.94,62.1]
[1763568601386,9.70870091,134.98,134.94,62.1]
[1763568601584,11.70882769,134.99,134.94,62.82]
[1763568601585,11.58882769,134.99,134.94,62.82]
[1763568601809,1.8,134.98,134.95,10.42870091]
[1763568602110,1.8,134.98,134.95,0.72]
[1763568602923,1.8,134.98,134.94,62.1]
[1763568602924,9.78882769,134.97,134.94,62.1]
[1763568603425,9.78882769,135.01,134.96,9.70870091]
[1763568603582,11.58882769,135.01,134.98,9.70870091]
[1763568603893,11.58882769,135.01,134.99,9.70870091]
[1763568604098,11.58882769,135.01,134.99,10.42870091]
[1763568604420,16.32797325,135.01,134.99,0.72]
[1763568604779,16.32797325,135.01,134.97,9.70870091]
[1763568605208,4.73914556,135.0,134.97,0.72]
[1763568605558,19.4975286,134.98,134.92,0.72]
[1763568605706,17.77423388,134.97,134.94,9.70870091]
[1763568605903,9.78882769,134.95,134.94,9.70870091]
[1763568606144,9.78882769,134.95,134.87,62.3]
[1763568606145,9.78882769,134.95,134.93,9.70870091]
[1763568606329,18.12096,134.99,134.94,10.42870091]
[1763568606330,4.73914556,134.97,134.94,10.42870091]
[1763568606527,14.55277326,134.98,134.96,9.70870091]
[1763568606831,4.76394557,134.99,134.97,9.70870091]
[1763568607022,4.76394557,135.0,134.98,9.70870091]
[1763568607338,4.76394557,135.01,134.99,9.70870091]
[1763568607637,4.76394557,135.05,135.0,28.54966091]
[1763568607823,4.76394557,135.06,135.04,9.70870091]
[1763568608025,7.74789012,135.08,135.05,9.70870091]
[1763568608239,4.76655906,135.07,135.06,9.70870091]
[1763568608406,14.55538675,135.07,135.06,9.70870091]
[1763568608610,14.55538675,135.07,135.06,10.42870091]
[1763568609050,4.76655906,135.07,135.06,10.42870091]
[1763568609209,7.74789012,135.1,135.06,10.42870091]
[1763568609210,4.76655906,135.09,135.06,10.42870091]
[1763568609530,4.77386579,135.08,135.07,0.72]
[1763568609735,4.77386579,135.1,135.07,10.42870091]
[1763568609936,4.77386579,135.09,135.03,18.12096]
[1763568610118,4.77386579,135.08,135.07,9.70870091]
[1763568610315,4.77386579,135.08,135.07,10.42870091]
[1763568610924,9.78882769,135.07,135.05,9.70870091]
[1763568611129,14.56269348,135.06,135.05,10.42870091]
[1763568611939,4.77386579,135.06,135.05,10.42870091]
[1763568612118,4.77386579,135.06,135.05,9.70870091]
[1763568612434,4.77386579,135.06,135.05,10.42870091]
[1763568612743,10.08688703,135.06,135.03,9.70870091]
[1763568612935,14.56269348,135.05,135.04,9.70870091]
[1763568613140,14.56269348,135.05,135.02,0.72]
[1763568613445,9.78882769,135.05,135.04,9.70870091]
[1763568613745,14.57188654,135.05,135.04,9.70870091]
[1763568613917,14.57188654,135.05,135.02,0.72]
[1763568613918,25.8285055,135.05,135.03,9.70870091]
[1763568614112,14.57188654,135.04,135.03,9.70870091]
[1763568614343,14.57188654,135.04,135.03,10.42870091]
[1763568614913,9.78882769,135.03,134.96,2.52]
[1763568615126,15.73671781,135.01,134.91,1.8]
[1763568615342,9.78882769,134.99,134.95,9.70870091]
[1763568615520,10.10053548,134.98,134.96,10.42870091]
[1763568615723,15.73671781,134.99,134.96,10.42870091]
[1763568615724,4.78305885,134.97,134.96,10.42870091]
[1763568616232,4.78305885,134.98,134.96,10.42870091]
[1763568616547,4.78305885,134.98,134.97,9.70870091]
[1763568616736,4.78305885,135.01,134.97,27.82966091]
[1763568617049,4.78895717,135.01,135.0,9.70870091]
[1763568617245,1.8,135.05,135.0,9.70870091]
[1763568617246,4.78895717,135.03,135.0,9.70870091]
[1763568617417,7.74789012,135.05,135.0,9.70870091]
[1763568617418,9.78882769,135.04,135.02,9.70870091]
[1763568617616,4.79409181,135.03,134.99,0.72]
[1763568617859,4.79409181,135.02,134.99,0.72]
[1763568618319,4.79409181,135.01,134.99,0.72]
[1763568618511,4.79409181,135.03,134.99,0.72]
[1763568618716,10.12884626,135.02,134.99,0.72]
[1763568618913,4.79409181,135.01,134.99,0.72]
[1763568619123,4.79409181,135.03,135.0,9.70870091]
[1763568619343,11.58882769,135.04,135.02,9.70870091]
[1763568619656,4.81045124,135.03,135.02,9.70870091]
[1763568620152,14.59927893,135.05,135.02,9.70870091]
[1763568620330,7.74789012,135.1,135.04,9.70870091]
[1763568620654,4.8156221,135.09,135.08,9.70870091]
[1763568621135,14.60444979,135.11,135.08,10.36870091]
[1763568621341,4.8156221,135.11,135.09,10.36870091]
[1763568621545,4.8156221,135.11,135.05,0.66]
[1763568621725,19.95120954,135.1,135.05,0.66]
[1763568621932,9.78882769,135.08,135.07,9.70870091]
[1763568622245,4.8156221,135.1,135.07,9.70870091]
[1763568622452,14.60218494,135.11,135.08,9.70870091]
[1763568622746,5.34703187,135.1,135.08,9.70870091]
[1763568622921,14.60218494,135.11,135.08,6.3484906]
[1763568623123,14.60218494,135.11,135.07,0.66]
[1763568623345,27.90978769,135.09,135.02,0.66]
[1763568623524,11.95670386,135.08,135.03,0.66]
[1763568623844,1.8,135.08,135.07,6.3484906]
[1763568624034,1.8,135.08,135.06,6.3484906]
[1763568624339,1.8,135.08,135.03,18.78096]
[1763568624553,1.8,135.08,135.06,6.3484906]
[1763568624718,5.46233466,135.07,135.02,6.3484906]
[1763568624925,14.60184107,135.06,135.0,6.3484906]
[1763568625126,9.78882769,135.04,134.94,0.7410701]
[1763568625321,9.78882769,135.04,134.93,3.79999999]
[1763568625322,9.78882769,135.02,134.98,6.3484906]
[1763568625522,9.90882769,135.02,134.94,0.72]
[1763568625746,9.78882769,135.02,134.98,6.3484906]
[1763568626217,9.78882769,135.02,134.99,7.0684906]
[1763568626420,9.90882769,135.02,134.95,0.72]
[1763568626614,9.78882769,135.02,134.97,6.3484906]
[1763568627046,9.78882769,135.02,134.97,7.0684906]
[1763568627343,9.78882769,135.02,134.99,6.3484906]
[1763568627524,9.78882769,135.02,135.0,6.3484906]
[1763568627728,9.78882769,135.02,135.01,6.3484906]
[1763568627951,9.78882769,135.02,134.99,6.3484906]
[1763568628422,9.78882769,135.02,134.98,7.0684906]
[1763568628621,9.78882769,135.0,134.98,7.0684906]
[1763568628925,9.78882769,135.0,134.99,6.3484906]
[1763568629324,9.78882769,135.02,134.99,7.0684906]
[1763568629554,11.58882769,135.02,134.99,7.0684906]
[1763568630351,11.58882769,135.02,134.98,6.3484906]
[1763568630524,11.58882769,135.02,134.98,7.0684906]
[1763568631032,11.58882769,135.02,134.95,0.72]
[1763568631229,11.58882769,135.02,134.97,6.3484906]
[1763568631563,9.78882769,135.02,134.99,6.3484906]
[1763568631851,11.58882769,135.02,134.98,6.3484906]
[1763568632032,11.58882769,135.02,134.96,18.84096]
[1763568632238,11.58882769,135.02,134.96,0.72]
[1763568632437,11.58882769,135.02,134.98,6.3484906]
[1763568632640,11.58882769,135.02,134.97,6.3484906]
[1763568632849,11.58882769,135.02,134.98,6.3484906]
[1763568634143,0.12,135.01,134.96,6.3484906]
[1763568634339,9.78882769,134.98,134.93,0.72]
[1763568634535,1.8,134.97,134.94,6.3484906]
[1763568634739,1.8,134.97,134.93,7.0684906]
[1763568634941,1.8,134.98,134.95,6.3484906]
[1763568635865,1.8,134.97,134.94,0.72]
[1763568636162,1.8,134.97,134.94,6.3484906]
[1763568636466,1.8,134.97,134.92,18.84096]
[1763568636753,1.8,134.97,134.93,6.3484906]
[1763568637868,1.8,134.97,134.92,0.72]
[1763568637869,9.78882769,134.96,134.92,18.12096]
[1763568638179,9.90882769,134.96,134.9,0.72]
[1763568638335,9.78882769,134.94,134.87,0.92]
[1763568638534,9.78882769,134.92,134.9,6.3484906]
[1763568638960,9.78882769,134.92,134.9,7.0684906]
[1763568639160,9.78882769,134.92,134.91,6.3484906]
[1763568639646,9.78882769,134.92,134.9,6.3484906]
[1763568639828,9.90882769,134.92,134.87,0.2]
[1763568640028,9.78882769,134.92,134.88,6.3484906]
[1763568640946,9.78882769,134.92,134.9,6.3484906]
[1763568641667,9.78882769,134.92,134.9,7.0684906]
[1763568642329,9.78882769,134.92,134.89,6.3484906]
[1763568642545,9.78882769,134.92,134.9,6.3484906]
[1763568643148,14.60594854,134.94,134.91,6.3484906]
[1763568643347,1.8,134.94,134.92,0.72]
[1763568643546,1.8,134.94,134.92,6.3484906]
[1763568644142,14.60594854,134.97,134.93,7.0684906]
[1763568644357,17.93731829,134.97,134.91,24.4694506]
[1763568644572,11.58882769,134.97,134.93,6.3484906]
[1763568644739,1.8,134.97,134.93,6.3484906]
[1763568645050,1.8,134.97,134.93,7.0684906]
[1763568645358,1.8,134.97,134.94,7.0684906]
[1763568645561,9.78882769,134.98,134.95,6.3484906]
[1763568645865,9.78882769,134.99,134.96,6.3484906]
[1763568646041,4.93712085,135.02,134.97,6.3484906]
[1763568646346,4.81712085,135.03,135.0,6.3484906]
[1763568646546,1.8,135.04,135.0,6.3484906]
[1763568646748,9.78882769,135.03,135.0,6.3484906]
[1763568647049,9.78882769,135.03,135.01,6.3484906]
[1763568647249,1.8,135.04,135.01,6.3484906]
[1763568647555,9.78882769,135.03,134.99,6.3484906]
[1763568647771,9.78882769,135.03,135.0,6.3484906]
[1763568647978,9.78882769,135.03,135.01,6.3484906]
[1763568648149,9.78882769,135.05,135.02,7.0684906]
[1763568648461,4.81712085,135.07,135.04,6.3484906]
[1763568648670,4.81712085,135.07,135.03,0.72]
[1763568648671,1.8,135.08,135.05,6.3484906]
[1763568648840,9.78882769,135.07,135.06,6.3484906]
[1763568649158,9.78882769,135.07,135.06,7.0684906]
[1763568649369,5.94789012,135.13,135.06,7.0684906]
[1763568649663,9.78882769,135.11,135.08,6.3484906]
[1763568649878,9.78882769,135.11,135.07,7.0684906]
[1763568650376,9.78882769,135.11,135.05,6.3484906]
[1763568650662,9.78882769,135.09,135.04,7.0184906]
[1763568650845,9.78882769,135.07,134.99,7.40774554]
[1763568651174,9.78882769,135.07,135.03,6.3484906]
[1763568651544,9.78882769,135.07,135.03,7.0184906]
[1763568651746,9.78882769,135.07,134.99,18.12096]
[1763568651943,9.78882769,135.07,135.03,6.3484906]
[1763568652873,9.78882769,135.07,135.03,7.0184906]
[1763568653172,9.78882769,135.08,135.04,0.67]
[1763568653348,9.78882769,135.08,135.05,6.3484906]
[1763568653542,4.81712085,135.09,135.06,6.3484906]
[1763568653868,9.78882769,135.1,135.07,6.3484906]
[1763568654058,9.78882769,135.1,135.04,0.67]
[1763568654384,0.12,135.09,135.04,6.3484906]
[1763568654677,9.78882769,135.1,135.05,6.3484906]
[1763568655184,0.12,135.09,135.05,6.3484906]
[1763568655466,9.78882769,135.08,135.05,6.3484906]
[1763568655658,0.12,135.09,135.05,6.3484906]
[1763568655867,9.78882769,135.08,135.03,18.12096]
[1763568656168,9.78882769,135.09,135.06,6.3484906]
[1763568656359,1.8,135.1,135.07,7.0184906]
[1763568656360,11.58882769,135.1,135.07,7.0184906]
[1763568656569,9.78882769,135.09,135.07,7.0184906]
[1763568656746,9.78882769,135.09,135.07,6.3484906]
[1763568657246,1.8,135.1,135.07,6.3484906]
[1763568657446,9.78882769,135.09,135.06,0.67]
[1763568657667,9.78882769,135.09,135.07,6.3484906]
[1763568658244,9.78882769,135.09,135.06,6.3484906]
[1763568658454,1.8,135.1,135.05,6.3484906]
[1763568658644,1.92,135.1,135.04,7.0184906]